lending/lending_fUSD_20240621
["ID","MTS","AMOUNT","RATE_DAILY","PERIOD"]
[330057128,1718973108736,-4140.12,0.00022739,4]
[330057129,1718973108747,-9242.19,0.00022739,4]
[330057130,1718973108756,-500.0,0.00022739,4]
[330057131,1718973108765,-994.01,0.00022739,4]
[330057132,1718973108774,-607.37586883,0.00022739,4]
[330057133,1718973108783,-4610.23,0.00022739,4]
[330057134,1718973108792,-6035.12,0.00022739,4]
[330057135,1718973108802,-537.14,0.00022739,4]
[330057136,1718973108811,-532.05,0.00022739,4]
[330057137,1718973108820,-500.0,0.00022739,4]
[330057138,1718973108828,-976.14,0.00022739,4]
[330057139,1718973108838,-773.03,0.00022739,4]
[330057140,1718973108847,-500.0,0.00022739,4]
[330057141,1718973108857,-1375.23,0.00022739,4]
[330057142,1718973108866,-1722.7,0.00022739,4]
[330057143,1718973108876,-500.0,0.00022739,4]
[330057144,1718973108886,-3024.03,0.00022739,4]
[330057145,1718973108896,-2802.47,0.00022739,4]
[330057146,1718973108907,-679.98,0.00022739,4]
[330057147,1718973108917,-1634.91,0.00022739,4]
[330057148,1718973108927,-42558.14,0.00022739,4]
[330057149,1718973108937,-10375.1,0.00022739,4]
[330057150,1718973108949,-1127.67,0.00022739,4]
[330057151,1718973108958,-500.0,0.00022739,4]
[330057152,1718973108969,-500.0,0.00022739,4]
[330057153,1718973108980,-659.26,0.00022739,4]
[330057154,1718973108990,-899.89,0.00022739,4]
[330057155,1718973109000,-843.22,0.00022739,4]
[330057156,1718973109010,-500.0,0.00022739,4]
[330057157,1718973109020,-4729.79,0.00022739,4]
[330057158,1718973109029,-500.0,0.00022739,4]
[330057159,1718973109039,-500.0,0.00022739,4]
[330057160,1718973109050,-500.0,0.00022739,4]
[330057161,1718973109060,-3503.55,0.00022739,4]
[330057162,1718973109069,-2269.84,0.00022739,4]
[330057163,1718973109080,-1118.16,0.00022739,4]
[330057164,1718973109089,-5767.85,0.00022739,4]
[330057165,1718973109099,-944.72,0.00022739,4]
[330057166,1718973109109,-1553.7,0.00022739,4]
[330057167,1718973109119,-1287.76,0.00022739,4]
[330057168,1718973109129,-1016.9,0.00022739,4]
[330057169,1718973109139,-309.3159308,0.00022739,4]
[330057170,1718973109148,-4029.23,0.00022739,4]
[330057171,1718973109158,-948.91,0.00022739,4]
[330057172,1718973109168,-8061.68,0.00022739,4]
[330057173,1718973109177,-645.64,0.00022739,4]
[330057174,1718973109187,-359.11050203,0.00022739,4]
[330057175,1718973109196,-753.5,0.00022739,4]
[330057176,1718973109206,-500.0,0.00022739,4]
[330057177,1718973109215,-1082.29,0.00022739,4]
[330057178,1718973109225,-821.86,0.00022739,4]
[330057179,1718973109235,-2618.75,0.00022739,4]
[330057180,1718973109244,-549.6174146,0.00022739,4]
[330057181,1718973109254,-2240.68,0.00022739,4]
[330057182,1718973109263,-6524.2,0.00022739,4]
[330057183,1718973109273,-500.0,0.00022739,4]
[330057184,1718973109282,-10229.78,0.00022739,4]
[330057185,1718973109292,-2672.77,0.00022739,4]
[330057186,1718973109302,-500.0,0.00022739,4]
[330057187,1718973109311,-1251.39,0.00022739,4]
[330057188,1718973109321,-548.32,0.00022739,4]
[330057189,1718973109330,-2198.52,0.00022739,4]
[330057190,1718973109340,-501.72,0.00022739,4]
[330057191,1718973109350,-3743.45,0.00022739,4]
[330057192,1718973109361,-2365.98,0.00022739,4]
[330057193,1718973109376,-517.75,0.00022739,4]
[330057194,1718973109386,-2448.82,0.00022739,4]
[330057195,1718973109395,-6165.62,0.00022739,4]
[330057196,1718973109405,-14455.54,0.00022739,4]
[330057197,1718973109415,-500.0,0.00022739,4]
[330057198,1718973109424,-3477.14,0.00022739,4]
[330057199,1718973109434,-500.0,0.00022739,4]
[330057200,1718973109443,-4788.49,0.00022739,4]
[330057201,1718973109457,-20294.02,0.00022739,4]
[330057202,1718973109467,-500.0,0.00022739,4]
[330057203,1718973109477,-502.87108999,0.00022739,4]
[330057204,1718973109487,-1172.3,0.00022739,4]
[330057205,1718973109497,-2444.9,0.00022739,4]
[330057206,1718973109506,-642.11,0.00022739,4]
[330057207,1718973109515,-500.0,0.00022739,4]
[330057208,1718973109527,-500.0,0.00022739,4]
[330057209,1718973109537,-502.52367702,0.00022739,4]
[330057210,1718973109546,-4260.44,0.00022739,4]
[330057211,1718973109557,-1028.41,0.00022739,4]
[330057212,1718973109566,-607.61,0.00022739,4]
[330057213,1718973109576,-504.65,0.00022739,4]
[330057214,1718973109588,-1589.93,0.00022739,4]
[330057215,1718973109598,-500.0,0.00022739,4]
[330057216,1718973109608,-500.0,0.00022739,4]
[330057217,1718973109620,-568.18,0.00022739,4]
[330057218,1718973109631,-500.0,0.00022739,4]
[330057219,1718973109640,-661.01,0.00022739,4]
[330057220,1718973109650,-776.26,0.00022739,4]
[330057221,1718973109660,-500.0,0.00022739,4]
[330057222,1718973109670,-500.0,0.00022739,4]
[330057223,1718973109680,-500.0,0.00022739,4]
[330057224,1718973109690,-535.0,0.00022739,4]
[330057225,1718973109700,-500.0,0.00022739,4]
[330057226,1718973109710,-500.0,0.00022739,4]
[330057227,1718973109719,-3142.51,0.00022739,4]
[330057228,1718973109729,-500.0,0.00022739,4]
[330057229,1718973109739,-152.13767797,0.00022739,4]
[330057230,1718973109749,-7651.37,0.00022739,4]
[330057231,1718973109759,-1483.94,0.00022739,4]
[330057232,1718973109768,-500.0,0.00022739,2]
[330057233,1718973109779,-1022.68,0.00022739,4]
[330057234,1718973109790,-938.92,0.00022739,4]
[330057235,1718973109801,-659.06,0.00022739,4]
[330057236,1718973109811,-500.0,0.00022739,4]
[330057237,1718973109820,-3324.75,0.00022739,4]
[330057238,1718973109829,-500.0,0.00022739,4]
[330057239,1718973109839,-3440.18,0.00022739,4]
[330057240,1718973109848,-2237.29,0.00022739,4]
[330057241,1718973109857,-509.77,0.00022739,4]
[330057242,1718973109867,-681.53,0.00022739,4]
[330057243,1718973109876,-500.0,0.00022739,2]
[330057244,1718973109886,-500.0,0.00022739,4]
[330057245,1718973109895,-921.28,0.00022739,4]
[330057246,1718973109904,-646.81,0.00022739,4]
[330057247,1718973109915,-1282.2,0.00022739,4]
[330057248,1718973109923,-388.72500756,0.00022739,4]
[330057249,1718973109933,-637.66759798,0.00022739,4]
[330057250,1718973109942,-3118.0,0.00022739,4]
[330057251,1718973109951,-500.0,0.00022739,4]
[330057252,1718973109961,-674.05,0.00022739,4]
[330057253,1718973109970,-418.49,0.00022739,4]
[330057254,1718973109979,-500.0,0.00022739,4]
[330057255,1718973109989,-595.09,0.00022739,4]
[330057256,1718973109999,-7977.64,0.00022739,4]
[330057257,1718973110008,-522.45615736,0.00022739,4]
[330057258,1718973110018,-1623.14,0.00022739,4]
[330057259,1718973110027,-2258.89,0.00022739,4]
[330057260,1718973110036,-500.0,0.00022739,4]
[330057261,1718973110046,-1390.34,0.00022739,4]
[330057262,1718973110055,-626.67,0.00022739,4]
[330057263,1718973110065,-21625.56,0.00022739,4]
[330057264,1718973110076,-7898.86,0.00022739,4]
[330057265,1718973110086,-1603.19,0.00022739,4]
[330057266,1718973110096,-500.0,0.00022739,4]
[330057267,1718973110106,-1546.07,0.00022739,4]
[330057268,1718973110116,-660.64,0.00022739,4]
[330057269,1718973110126,-2103.36,0.00022739,4]
[330057270,1718973110135,-2503.5,0.00022739,4]
[330057271,1718973110145,-1502.56,0.00022739,4]
[330057272,1718973110154,-957.42,0.00022739,4]
[330057273,1718973110164,-500.0,0.00022739,4]
[330057274,1718973110174,-932.91,0.00022739,4]
[330057275,1718973110183,-2316.39,0.00022739,4]
[330057276,1718973110193,-2903.05,0.00022739,4]
[330057277,1718973110202,-989.38,0.00022739,4]
[330057278,1718973110212,-500.0,0.00022739,4]
[330057279,1718973110221,-500.0,0.00022789,2]
[330057280,1718973110231,-500.0,0.0002279,2]
[330057281,1718973110240,-443.32163492,0.00022792,2]
[330057282,1718973110250,-153.95990554,0.00022797,2]
[330057283,1718973110260,-151.0,0.00022857,2]
[330057284,1718973110269,-161.66000186,0.00022865,2]
[330057285,1718973110278,-443.32163492,0.0002289,2]
[330057286,1718973110288,-171.25042833,0.0002289,2]
[330057287,1718973110297,-2262.99017345,0.0002289,2]
[330057288,1718973110308,-6801.37289888,0.0002289,2]
[330057289,1718973110317,-10555.79980274,0.000229,2]
[330057290,1718973110327,-20120.0,0.000229,2]
[330057291,1718973110336,-150.0,0.000229,11]
[330057292,1718973110345,-490.0,0.000229,5]
[330057293,1718973110355,-588.0,0.000229,5]
[330057294,1718973110365,-180.0,0.000229,5]
[330057295,1718973110383,-1000.0,0.000229,2]
[330057296,1718973110393,-359.0,0.00022952,30]
[330057297,1718973110402,-652.0,0.00022952,30]
[330057298,1718973110411,-359.0,0.00022962,30]
[330057299,1718973110422,-652.0,0.00022962,30]
[330057300,1718973110431,-5566.5387973,0.00022963,2]
[330057301,1718973110440,-2452.9965077,0.00022963,2]
[330057302,1718973110451,-52816.5348389,0.00022963,2]
[330057303,1718973110461,-1478.3377406,0.00022964,2]
[330057304,1718973110470,-162.2473133,0.00022965,2]
[330057305,1718973110480,-291.93341729,0.00022969,2]
[330057306,1718973110489,-367.95,0.0002297,30]
[330057307,1718973110499,-653.65,0.0002297,30]
[330057308,1718973110508,-576.47133492,0.0002297,2]
[330057309,1718973110517,-700.0,0.0002297,2]
[330057310,1718973110527,-700.0,0.0002297,2]
[330057311,1718973110536,-700.0,0.0002297,2]
[330057312,1718973110545,-700.0,0.0002297,2]
[330057313,1718973110555,-925.93513,0.0002297,2]
[330057314,1718973110564,-209.23301289,0.00022973,2]
[330057315,1718973110573,-5903.55757461,0.00022973,2]
[330057316,1718973110582,-174.61428751,0.00022973,2]
[330057317,1718973110592,-1655.872,0.00022974,2]
[330057318,1718973110601,-1393.8902633,0.00022974,2]
[330057319,1718973110610,-5226.2461511,0.00022974,2]
[330057320,1718973110620,-2303.0403674,0.00022974,2]
[330057321,1718973110629,-49587.7639528,0.00022974,2]
[330057322,1718973110639,-7453.89,0.0002298,2]
[330057323,1718973110648,-359.0,0.0002298,30]
[330057324,1718973110658,-652.0,0.0002298,30]
[330057325,1718973110674,-155.02302808,0.00022985,2]
[330057326,1718973110686,-21516.0,0.00022986,2]
[330057327,1718973110695,-7623.05,0.00022989,2]
[330057328,1718973110705,-2762636.37512243,0.0002299,5]
[330057329,1718973111823,-693.62418276,0.0002299,5]
[330057330,1718973111835,-329.92499997,0.0002299,5]
[330057331,1718973112867,-499.99,0.00021068,2]
[330057332,1718973112876,-778.58705878,0.00021817,2]
[330057333,1718973112887,-325.35563864,0.00021817,2]
[330057334,1718973113560,-390.2895,0.00021817,2]
[330057335,1718973113572,-637.22224929,0.00021817,2]
[330057336,1718973113605,-605.17284054,0.00021817,2]
[330057337,1718973113619,-151.0,0.00021917,2]
[330057338,1718973113628,-151.0,0.00021917,2]
[330057339,1718973113638,-151.0,0.00021917,2]
[330057340,1718973113648,-500.0,0.00021917,4]
[330057341,1718973113657,-959.2,0.00021917,4]
[330057342,1718973113667,-151.0,0.00021917,2]
[330057343,1718973113676,-151.0,0.00021917,2]
[330057344,1718973113686,-151.0,0.00021917,2]
[330057345,1718973113695,-151.0,0.00021917,2]
[330057346,1718973113704,-252.856955,0.00021917,2]
[330057347,1718973113714,-151.0,0.00021917,2]
[330057348,1718973113723,-732.75,0.00021917,4]
[330057349,1718973113733,-151.0,0.00021917,2]
[330057350,1718973113742,-151.0,0.00021917,2]
[330057351,1718973113752,-933.53,0.00021917,4]
[330057352,1718973113763,-151.0,0.00021917,2]
[330057353,1718973113772,-151.0,0.00021917,2]
[330057354,1718973113782,-209.369039,0.00021917,2]
[330057355,1718973113791,-599.06,0.00021917,4]
[330057356,1718973113800,-500.0,0.00021917,4]
[330057357,1718973113808,-500.0,0.00021917,4]
[330057358,1718973113818,-206.51119658,0.00021917,4]
[330057359,1718973113829,-1659.0,0.00022076,2]
[330057360,1718973113838,-4110.22429848,0.00022076,2]
[330057361,1718973113855,-710.33,0.00022076,2]
[330057362,1718973113867,-380.43528124,0.00022076,2]
[330057363,1718973113878,-505.14,0.00022076,2]
[330057364,1718973113890,-292.064,0.00022076,2]
[330057365,1718973113901,-518.90570714,0.00022076,2]
[330057366,1718973113913,-534.751368,0.00022076,2]
[330057367,1718973114485,-500.0,0.00021917,4]
[330057368,1718973114495,-500.0,0.00021917,4]
[330057369,1718973114505,-901.17,0.00021917,4]
[330057370,1718973114515,-1096.30158074,0.00022076,2]
[330057371,1718973114539,-500.0,0.00021917,4]
[330057372,1718973114550,-262.88,0.00021917,4]
[330057373,1718973114771,-2161.6400943,0.00022076,2]
[330057374,1718973114790,-755.47013296,0.00022076,2]
[330057375,1718973114809,-498.40910865,0.00022076,2]
[330057556,1718973230613,663.1240232,0.000121,30]
[330057557,1718973234997,151.0,0.0002242,120]
[330057560,1718973370761,-200.0,0.00021966,30]
[330057561,1718973370787,-200.0,0.00021966,30]
[330057562,1718973370813,-200.0,0.00021966,30]
[330057563,1718973370839,-200.0,0.00021966,30]
[330057564,1718973370864,-394.991004,0.00022,30]
[330057565,1718973370976,-151.0,0.00022878,30]
[330057566,1718973371017,-532.00474181,0.00023013,32]
[330057567,1718973371410,-406.56,0.00025,30]
[330057568,1718973371438,-1382.39799185,0.00025,30]
[330057569,1718973371472,-2772.02507237,0.00025,30]
[330057570,1718973371517,-978.3830658,0.00025,30]
[330057571,1718973371655,-774.87,0.00025883,30]
[330057572,1718973371725,-416.0,0.0002615,120]
[330057573,1718973371786,-150.0,0.00026571,120]
[330057574,1718973371885,-150.0,0.00026967,120]
[330057575,1718973371913,-150.0,0.00027,30]
[330057576,1718973372412,-150.0,0.00027148,120]
[330057577,1718973372440,-1000.0,0.00027187,30]
[330057578,1718973372470,-292.67374396,0.0002736,120]
[330057579,1718973372497,-292.34147154,0.0002739,30]
[330057580,1718973372523,-168.39,0.00027397,30]
[330057581,1718973372559,-2000.0,0.00027397,30]
[330057582,1718973372583,-2000.0,0.00027397,30]
[330057583,1718973372606,-2000.0,0.00027397,30]
[330057584,1718973372632,-2000.0,0.00027397,30]
[330057585,1718973372659,-2000.0,0.00027397,30]
[330057586,1718973372684,-1566.99336816,0.00027397,30]
[330057587,1718973372728,-200.0,0.00027397,60]
[330057588,1718973372762,-150.0,0.00027438,120]
[330057589,1718973372787,-150.0,0.00027463,120]
[330057590,1718973372811,-168.39,0.00027534,30]
[330057591,1718973372838,-168.39,0.00027671,30]
[330057592,1718973372887,-168.39,0.00027808,30]
[330057593,1718973372920,-1000.0,0.00027815,120]
[330057594,1718973372947,-168.39,0.00027945,30]
[330057595,1718973372997,-152.0,0.00028,90]
[330057596,1718973373038,-200.0,0.0002805,120]
[330057597,1718973373065,-932.94911223,0.00028055,30]
[330057598,1718973373091,-168.39,0.00028082,30]
[330057599,1718973373133,-932.94911223,0.00028164,30]
[330057600,1718973373162,-168.39,0.00028219,30]
[330057601,1718973373214,-150.0,0.00028243,120]
[330057602,1718973373240,-932.94911223,0.00028301,30]
[330057603,1718973373265,-168.39,0.00028356,30]
[330057604,1718973373292,-932.94911223,0.00028411,30]
[330057605,1718973373319,-168.39,0.00028493,30]
[330057606,1718973373345,-331.55856495,0.000285,120]
[330057607,1718973373371,-932.94911223,0.00028521,30]
[330057608,1718973373397,-150.0,0.00028557,120]
[330057609,1718973373426,-168.39,0.0002863,30]
[330057610,1718973373453,-1208.0,0.0002863,30]
[330057611,1718973373484,-932.94911223,0.00028658,30]
[330057612,1718973373511,-168.39,0.00028767,30]
[330057613,1718973373539,-932.94911223,0.00028767,30]
[330057614,1718973373563,-297.00735,0.00028815,120]
[330057615,1718973373590,-932.94911223,0.00028877,30]
[330057616,1718973373616,-168.39,0.00028904,30]
[330057617,1718973373643,-670.18515309,0.00029,120]
[330057618,1718973373669,-932.94911223,0.00029014,30]
[330057619,1718973373696,-168.39,0.00029041,30]
[330057620,1718973373722,-150.0,0.00029101,120]
[330057621,1718973373747,-932.94911223,0.00029123,30]
[330057622,1718973373773,-168.39,0.00029178,30]
[330057623,1718973373800,-150.0,0.00029182,120]
[330057624,1718973373826,-932.94911223,0.00029233,30]
[330057625,1718973373853,-168.39,0.00029315,30]
[330057626,1718973373880,-932.94911223,0.0002937,30]
[330057627,1718973373908,-200.0,0.00029415,120]
[330057628,1718973373935,-1000.0,0.00029415,120]
[330057629,1718973373973,-168.39,0.00029452,30]
[330057630,1718973374003,-932.94911223,0.00029479,30]
[330057631,1718973374031,-361.907239,0.000295,30]
[330057632,1718973374060,-150.0,0.00029554,120]
[330057633,1718973374088,-168.39,0.00029589,30]
[330057634,1718973374116,-932.94911223,0.00029589,30]
[330057635,1718973374146,-150.0,0.00029717,120]
[330057636,1718973374174,-168.39,0.00029726,30]
[330057637,1718973374202,-932.94911223,0.00029726,30]
[330057638,1718973374230,-150.0,0.00029787,120]
[330057639,1718973374259,-542.860859,0.000298,30]
[330057640,1718973374285,-168.39,0.00029863,30]
[330057641,1718973374426,-1187.15337046,0.0002988,30]
[330057642,1718973374453,-168.39,0.00029999,30]
[330057643,1718973374484,-723.814479,0.0003,30]
[330057644,1718973374509,-200.0,0.0003,60]
[330057645,1718973374533,-909.52623572,0.0003,120]
[330057646,1718973374559,-1851.47502615,0.0003,120]
[330057647,1718973374583,-1000.0,0.0003,120]
[330057648,1718973374608,-1355.84396797,0.0003,120]
[330057649,1718973374633,-302.35370285,0.0003,120]
[330057650,1718973374661,-168.39,0.00030136,30]
[330057651,1718973374686,-200.0,0.00030137,60]
[330057652,1718973374711,-168.39,0.00030273,30]
[330057653,1718973374735,-168.39,0.0003041,30]
[330057654,1718973374763,-150.0,0.00030497,120]
[330057655,1718973374821,-904.768099,0.000305,30]
[330057656,1718973374845,-168.61,0.00030547,30]
[330057657,1718973374871,-150.0,0.00030609,120]
[330057658,1718973374896,-1266.675338,0.000308,30]
[330057659,1718973374925,-250.0,0.000308,30]
[330057660,1718973374951,-774.87,0.00030864,30]
[330057661,1718973374978,-150.0,0.00030876,120]
[330057662,1718973375020,-150.0,0.00031171,120]
[330057663,1718973375048,-150.0,0.00031232,120]
[330057664,1718973375075,-150.0,0.0003128,120]
[330057665,1718973375102,-150.0,0.00031308,120]
[330057666,1718973375130,-1447.628958,0.000318,30]
[330057667,1718973375157,-300.0,0.0003188,120]
[330057668,1718973375182,-260.80475843,0.00032393,40]
[330057669,1718973375216,-150.0,0.00032469,120]
[330057670,1718973375242,-168.34,0.000327,31]
[330057671,1718973375269,-168.34,0.000327,31]
[330057672,1718973375295,-168.34,0.000327,31]
[330057673,1718973375321,-168.34,0.000327,31]
[330057674,1718973375346,-465.42006151,0.00032876,30]
[330057675,1718973375370,-563.96,0.00032876,120]
[330057676,1718973375396,-563.96,0.00032876,120]
[330057677,1718973375424,-563.96,0.00032876,120]
[330057678,1718973375450,-563.96,0.00032876,120]
[330057679,1718973375476,-563.96,0.00032876,120]
[330057680,1718973375502,-563.96,0.00032876,120]
[330057681,1718973375527,-563.96,0.00032876,120]
[330057682,1718973375552,-563.96,0.00032876,120]
[330057683,1718973375576,-563.96,0.00032876,120]
[330057684,1718973375602,-563.96,0.00032876,120]
[330057685,1718973375627,-563.96,0.00032876,120]
[330057686,1718973375653,-563.96,0.00032876,120]
[330057687,1718973375678,-563.96,0.00032876,120]
[330057688,1718973375702,-563.96,0.00032876,120]
[330057689,1718973375728,-563.96,0.00032876,120]
[330057690,1718973375752,-563.96,0.00032876,120]
[330057691,1718973375776,-563.96,0.00032876,120]
[330057692,1718973375802,-563.96,0.00032876,120]
[330057693,1718973375826,-563.96,0.00032876,120]
[330057694,1718973375851,-563.96,0.00032876,120]
[330057695,1718973375877,-563.96,0.00032876,120]
[330057696,1718973375902,-563.96,0.00032876,120]
[330057697,1718973375928,-563.96,0.00032876,120]
[330057698,1718973375954,-564.02,0.00032876,120]
[330057699,1718973375980,-200.0,0.00032877,60]
[330057700,1718973376006,-168.34,0.000329,31]
[330057701,1718973376031,-159.0855067,0.00033,120]
[330057702,1718973376057,-150.0,0.00033005,120]
[330057703,1718973376083,-168.34,0.000331,31]
[330057704,1718973376110,-150.0,0.00033166,120]
[330057705,1718973376134,-12380.9710631,0.0003327,30]
[330057706,1718973376161,-300.0,0.00033287,120]
[330057707,1718973376190,-168.34,0.000333,31]
[330057708,1718973376215,-150.0,0.0003345,120]
[330057709,1718973376240,-1447.628958,0.000335,30]
[330057710,1718973376265,-168.34,0.000335,31]
[330057711,1718973376291,-150.0,0.00033928,120]
[330057712,1718973376317,-1000.0,0.00034,120]
[330057713,1718973376343,-1000.0,0.00034,120]
[330057714,1718973376369,-150.0,0.00034654,120]
[330057715,1718973376394,-306.37363905,0.00034693,120]
[330057716,1718973376427,-200.0,0.00035,120]
[330057717,1718973376453,-1732.89075204,0.00035,30]
[330057718,1718973376479,-602.29826525,0.00035,30]
[330057719,1718973376504,-217.94018001,0.00035,120]
[330057720,1718973376529,-2000.0,0.00035,30]
[330057721,1718973376557,-1000.0,0.00035,30]
[330057722,1718973376582,-150.0,0.00035451,120]
[330057723,1718973376608,-150.0,0.00035487,120]
[330057724,1718973376632,-1438.02,0.00035616,90]
[330057725,1718973376663,-1438.02,0.00035616,90]
[330057726,1718973376688,-1438.02,0.00035616,90]
[330057727,1718973376713,-1438.02,0.00035616,90]
[330057728,1718973376738,-1438.02,0.00035616,90]
[330057729,1718973376763,-1438.02,0.00035616,90]
[330057730,1718973376788,-1438.02,0.00035616,90]
[330057731,1718973376812,-1438.02,0.00035616,90]
[330057732,1718973376835,-1438.02,0.00035616,90]
[330057733,1718973376859,-1438.02,0.00035616,90]
[330057734,1718973376883,-1438.02,0.00035616,90]
[330057735,1718973376915,-1438.02,0.00035616,90]
[330057736,1718973376940,-1438.02,0.00035616,90]
[330057737,1718973376966,-1438.02,0.00035616,90]
[330057738,1718973376990,-1438.02,0.00035616,90]
[330057739,1718973377018,-1438.02,0.00035616,90]
[330057740,1718973377045,-1438.02,0.00035616,90]
[330057741,1718973377070,-1438.02,0.00035616,90]
[330057742,1718973377095,-1438.02,0.00035616,90]
[330057743,1718973377122,-1438.02,0.00035616,90]
[330057744,1718973377147,-1438.02,0.00035616,90]
[330057745,1718973377176,-1438.02,0.00035616,90]
[330057746,1718973377343,-1438.02,0.00035616,90]
[330057747,1718973377368,-1438.19570864,0.00035616,90]
[330057748,1718973377392,-200.0,0.00035616,60]
[330057749,1718973377418,-1000.0,0.00035616,30]
[330057750,1718973377443,-1000.0,0.00035819,30]
[330057751,1718973377472,-774.87,0.00035846,30]
[330057752,1718973377498,-1000.0,0.00036,120]
[330057753,1718973377523,-1000.0,0.00036022,30]
[330057754,1718973377549,-150.0,0.00036082,120]
[330057755,1718973377575,-150.0,0.00036088,120]
[330057756,1718973377599,-1000.0,0.00036225,30]
[330057757,1718973377625,-150.0,0.00036376,120]
[330057758,1718973377650,-1000.0,0.00036428,30]
[330057759,1718973377680,-1000.0,0.00036556,120]
[330057760,1718973377707,-1000.0,0.00036631,30]
[330057761,1718973377732,-150.0,0.00036704,120]
[330057762,1718973377758,-361.907239,0.000368,30]
[330057763,1718973377783,-1000.0,0.00036834,30]
[330057764,1718973377809,-1500.0393115,0.00037,30]
[330057765,1718973377833,-1092.0,0.00037,120]
[330057766,1718973377858,-1000.0,0.00037037,30]
[330057767,1718973377882,-1000.0,0.0003724,30]
[330057768,1718973377910,-150.0,0.00037272,120]
[330057769,1718973377934,-1000.0,0.00037443,30]
[330057770,1718973377962,-150.0,0.00037483,120]
[330057771,1718973377986,-1000.0,0.00037646,30]
[330057772,1718973378012,-1000.0,0.00037849,30]
[330057773,1718973378039,-1841.18599976,0.00038,30]
[330057774,1718973378067,-1000.0,0.00038,120]
[330057775,1718973378094,-20788.62918819,0.00038,90]
[330057776,1718973378121,-24568.22830277,0.00038,120]
[330057777,1718973378147,-1000.0,0.00038052,30]
[330057778,1718973378179,-150.0,0.00038253,120]
[330057779,1718973378203,-1000.0,0.00038255,30]
[330057780,1718973378230,-1000.0,0.00038356,120]
[330057781,1718973378257,-1000.0,0.00038356,120]
[330057782,1718973378283,-1000.0,0.00038356,120]
[330057783,1718973378309,-1000.0,0.00038356,120]
[330057784,1718973378335,-1000.0,0.00038356,120]
[330057785,1718973378360,-1000.0,0.00038356,120]
[330057786,1718973378387,-1000.0,0.00038356,120]
[330057787,1718973378412,-1000.0,0.00038356,120]
[330057788,1718973378438,-1000.0,0.00038356,120]
[330057789,1718973378474,-1000.0,0.00038356,120]
[330057790,1718973378500,-1000.0,0.00038356,120]
[330057791,1718973378527,-1000.0,0.00038356,120]
[330057792,1718973378555,-1000.0,0.00038356,120]
[330057793,1718973378580,-1079.1248278,0.00038356,120]
[330057794,1718973378606,-209.10147377,0.00038356,60]
[330057795,1718973378632,-446.5323535,0.000384,33]
[330057796,1718973378660,-678.24433457,0.000384,120]
[330057797,1718973378684,-1000.0,0.00038458,30]
[330057798,1718973378710,-150.0,0.0003854,120]
[330057799,1718973378735,-1000.0,0.00038661,30]
[330057800,1718973378761,-1000.0,0.00038864,30]
[330057801,1718973378787,-1049.98179603,0.000389,30]
[330057802,1718973378815,-150.0,0.00038927,120]
[330057803,1718973378843,-150.0,0.00038927,120]
[330057804,1718973378869,-150.0,0.00038985,120]
[330057805,1718973378894,-2514.37059674,0.00038987,31]
[330057806,1718973378918,-1278.13227385,0.00039,30]
[330057807,1718973378947,-150.0,0.00039065,120]
[330057808,1718973378970,-1000.0,0.00039066,30]
[330057809,1718973378993,-1000.0,0.00039269,30]